[Event "*** Titled Tuesday Blitz"]
[Site "Chess.com"]
[Date "2021.04.27"]
[Round "7"]
[White "maximych26"]
[Black "MFBerna"]
[Result "1-0"]
[WhiteElo "2313"]
[BlackElo "2446"]
[TimeControl "180+1"]
[EndTime "11:16:07 PDT"]
[Termination "maximych26 won by resignation"]

1. e4 {[%clk 0:03:00.9]} 1... c6 {[%clk 0:02:52.2]} 2. Nc3 {[%clk 0:02:58.6]}
2... d5 {[%clk 0:02:51.4]} 3. Nf3 {[%clk 0:02:59.2]} 3... Bg4 {[%clk 0:02:46.4]}
4. h3 {[%clk 0:02:58.2]} 4... Bxf3 {[%clk 0:02:46.6]} 5. Qxf3 {[%clk 0:02:58.2]}
5... e6 {[%clk 0:02:45.8]} 6. Be2 {[%clk 0:02:57.2]} 6... Nf6 {[%clk 0:02:42.6]}
7. O-O {[%clk 0:02:57]} 7... Nbd7 {[%clk 0:02:40.8]} 8. d4 {[%clk 0:02:53.2]}
8... dxe4 {[%clk 0:02:40.8]} 9. Nxe4 {[%clk 0:02:52.4]} 9... Be7 {[%clk
0:02:41.2]} 10. c3 {[%clk 0:02:51]} 10... O-O {[%clk 0:02:29.4]} 11. Bd3 {[%clk
0:02:50]} 11... Nxe4 {[%clk 0:02:24.8]} 12. Qxe4 {[%clk 0:02:49.5]} 12... Nf6
{[%clk 0:02:22.9]} 13. Qh4 {[%clk 0:02:49.2]} 13... h6 {[%clk 0:02:13.6]} 14.
Re1 {[%clk 0:02:43.2]} 14... Qd7 {[%clk 0:02:00.8]} 15. Bxh6 {[%clk 0:02:31.7]}
15... gxh6 {[%clk 0:01:49.8]} 16. Qxh6 {[%clk 0:02:31.7]} 16... Rfd8 {[%clk
0:01:36.9]} 17. Re3 {[%clk 0:02:31.5]} 17... Bd6 {[%clk 0:01:11]} 18. Qxf6
{[%clk 0:02:29]} 18... Kf8 {[%clk 0:01:05.4]} 19. Rae1 {[%clk 0:02:22.4]} 19...
Ke8 {[%clk 0:00:46.5]} 20. Rxe6+ {[%clk 0:01:59.1]} 20... Qxe6 {[%clk
0:00:47.4]} 21. Rxe6+ {[%clk 0:01:56.2]} 21... fxe6 {[%clk 0:00:47.4]} 22. Qxe6+
{[%clk 0:01:56.1]} 22... Kf8 {[%clk 0:00:47.9]} 23. Bg6 {[%clk 0:01:54.6]} 23...
Kg7 {[%clk 0:00:41.9]} 24. Qf7+ {[%clk 0:01:52.5]} 24... Kh6 {[%clk 0:00:41.2]}
25. h4 {[%clk 0:01:41.4]} 25... Rh8 {[%clk 0:00:36.5]} 26. Qf6 {[%clk
0:01:31.4]} 26... Be7 {[%clk 0:00:33.7]} 27. Qxe7 {[%clk 0:01:20.7]} 27... Kxg6
{[%clk 0:00:33.5]} 28. g3 {[%clk 0:01:20.8]} 28... Rh7 {[%clk 0:00:31.7]} 29.
Qe4+ {[%clk 0:01:18.4]} 29... Kg7 {[%clk 0:00:26.8]} 30. Kg2 {[%clk 0:01:18.5]}
30... Rf8 {[%clk 0:00:25.3]} 31. Qe5+ {[%clk 0:01:17.6]} 31... Kg8 {[%clk
0:00:23.8]} 32. Qe6+ {[%clk 0:01:15.9]} 32... Kh8 {[%clk 0:00:20.2]} 33. f4
{[%clk 0:01:15]} 33... Rg7 {[%clk 0:00:17.8]} 34. f5 {[%clk 0:01:08.7]} 34...
Rfg8 {[%clk 0:00:14.8]} 35. Qe5 {[%clk 0:01:08]} 35... Kh7 {[%clk 0:00:14.9]}
36. Kf3 {[%clk 0:01:07.1]} 36... Rf7 {[%clk 0:00:12]} 37. g4 {[%clk 0:01:06.3]}
37... b5 {[%clk 0:00:09.1]} 38. g5 {[%clk 0:01:05.9]} 38... Rfg7 {[%clk
0:00:06]} 39. Kg4 {[%clk 0:01:04.8]} 39... Rf8 {[%clk 0:00:05]} 40. f6 {[%clk
0:01:03.8]} 40... Rd7 {[%clk 0:00:02.7]} 41. Qf5+ {[%clk 0:01:03.3]} 1-0

[Event "*** Titled Tuesday Blitz"]
[Site "Chess.com"]
[Date "2021.04.27"]
[Round "7"]
[White "The_filthy"]
[Black "tusplingher"]
[Result "1-0"]
[WhiteElo "2402"]
[BlackElo "2266"]
[TimeControl "180+1"]
[EndTime "11:16:09 PDT"]
[Termination "The_filthy won by resignation"]

1. e4 {[%clk 0:03:00.9]} 1... c5 {[%clk 0:02:58]} 2. Nf3 {[%clk 0:03:01.3]} 2...
g6 {[%clk 0:02:51.7]} 3. d4 {[%clk 0:02:54.2]} 3... cxd4 {[%clk 0:02:51.7]} 4.
c3 {[%clk 0:02:54.8]} 4... dxc3 {[%clk 0:02:50.3]} 5. Nxc3 {[%clk 0:02:54.7]}
5... Nc6 {[%clk 0:02:50.3]} 6. Bc4 {[%clk 0:02:54.7]} 6... Bg7 {[%clk 0:02:50]}
7. e5 {[%clk 0:02:53.5]} 7... Qc7 {[%clk 0:02:45.9]} 8. Nb5 {[%clk 0:02:28.5]}
8... Qb6 {[%clk 0:02:43.7]} 9. O-O {[%clk 0:02:23.9]} 9... a6 {[%clk 0:02:42.7]}
10. Be3 {[%clk 0:02:14]} 10... Qd8 {[%clk 0:02:42.2]} 11. Nbd4 {[%clk
0:02:09.3]} 11... Nxd4 {[%clk 0:02:41.2]} 12. Qxd4 {[%clk 0:02:08.1]} 12... Nh6
{[%clk 0:02:36.4]} 13. Bxh6 {[%clk 0:01:58.4]} 13... Bxh6 {[%clk 0:02:35.6]} 14.
e6 {[%clk 0:01:58.7]} 14... f6 {[%clk 0:02:35.5]} 15. exd7+ {[%clk 0:01:46.3]}
15... Qxd7 {[%clk 0:02:33.6]} 16. Qh4 {[%clk 0:01:42.6]} 16... Bg7 {[%clk
0:02:31.2]} 17. h3 {[%clk 0:01:34.3]} 17... e6 {[%clk 0:02:23.9]} 18. Rfe1
{[%clk 0:01:31]} 18... e5 {[%clk 0:01:50.7]} 19. Rad1 {[%clk 0:01:25.5]} 19...
Qe7 {[%clk 0:01:49.7]} 20. Nd4 {[%clk 0:01:03.8]} 20... b5 {[%clk 0:01:30]} 21.
Bb3 {[%clk 0:01:01.4]} 21... Bd7 {[%clk 0:01:26.2]} 22. Qe4 {[%clk 0:00:49.5]}
22... Rc8 {[%clk 0:01:19.8]} 23. Qb7 {[%clk 0:00:44.6]} 23... Rd8 {[%clk
0:00:43.2]} 24. Nc6 {[%clk 0:00:33.4]} 24... Bxc6 {[%clk 0:00:37.1]} 25. Qxc6+
{[%clk 0:00:33.3]} 25... Kf8 {[%clk 0:00:36.6]} 26. Rxd8+ {[%clk 0:00:29.5]}
26... Qxd8 {[%clk 0:00:36.3]} 27. Rd1 {[%clk 0:00:28]} 27... Qe8 {[%clk
0:00:24.3]} 28. Rd7 {[%clk 0:00:17.7]} 28... h5 {[%clk 0:00:15.9]} 29. Qd6+
{[%clk 0:00:15.8]} 1-0

[Event "*** Titled Tuesday Blitz"]
[Site "Chess.com"]
[Date "2021.04.27"]
[Round "7"]
[White "Forantes"]
[Black "KhatanbaatarBazar"]
[Result "0-1"]
[WhiteElo "2503"]
[BlackElo "2668"]
[TimeControl "180+1"]
[EndTime "11:16:12 PDT"]
[Termination "KhatanbaatarBazar won by resignation"]

1. Nf3 {[%clk 0:03:00.9]} 1... Nf6 {[%clk 0:02:59.1]} 2. g3 {[%clk 0:03:01.2]}
2... d5 {[%clk 0:02:59.4]} 3. Bg2 {[%clk 0:03:01.2]} 3... g6 {[%clk 0:03:00.1]}
4. O-O {[%clk 0:03:01.3]} 4... Bg7 {[%clk 0:03:00.8]} 5. d4 {[%clk 0:03:01.8]}
5... O-O {[%clk 0:03:01.1]} 6. c4 {[%clk 0:03:00.4]} 6... c6 {[%clk 0:03:01.4]}
7. Qb3 {[%clk 0:02:53.2]} 7... a5 {[%clk 0:02:59.2]} 8. Nc3 {[%clk 0:02:43.6]}
8... dxc4 {[%clk 0:02:57.6]} 9. Qxc4 {[%clk 0:02:43.6]} 9... Na6 {[%clk
0:02:58.1]} 10. Bf4 {[%clk 0:02:38.8]} 10... Nb4 {[%clk 0:02:57.8]} 11. Qb3
{[%clk 0:02:09.2]} 11... Be6 {[%clk 0:02:48.7]} 12. Qd1 {[%clk 0:02:08.1]} 12...
Nfd5 {[%clk 0:02:48]} 13. e3 {[%clk 0:01:55.5]} 13... Nxf4 {[%clk 0:02:47.6]}
14. gxf4 {[%clk 0:01:56.4]} 14... Bf5 {[%clk 0:02:46.7]} 15. a3 {[%clk
0:01:47.9]} 15... Nd5 {[%clk 0:02:45.3]} 16. Ne5 {[%clk 0:01:38.2]} 16... Be6
{[%clk 0:02:41.1]} 17. Qd2 {[%clk 0:01:33.8]} 17... f6 {[%clk 0:02:33.6]} 18.
Nd3 {[%clk 0:01:32.5]} 18... Bf7 {[%clk 0:02:33.3]} 19. Rac1 {[%clk 0:01:26.4]}
19... Nxc3 {[%clk 0:02:31.7]} 20. bxc3 {[%clk 0:01:21.7]} 20... Qd6 {[%clk
0:02:30.2]} 21. Qb2 {[%clk 0:01:15]} 21... b5 {[%clk 0:02:18.2]} 22. Nc5 {[%clk
0:01:14.7]} 22... Rac8 {[%clk 0:02:12]} 23. a4 {[%clk 0:01:14.3]} 23... Rb8
{[%clk 0:02:01.7]} 24. axb5 {[%clk 0:00:56.6]} 24... cxb5 {[%clk 0:02:01.6]} 25.
Ra1 {[%clk 0:00:57]} 25... a4 {[%clk 0:02:01.6]} 26. Qb4 {[%clk 0:00:55.3]}
26... e5 {[%clk 0:01:55.5]} 27. fxe5 {[%clk 0:00:43.2]} 27... fxe5 {[%clk
0:01:55.4]} 28. Rfb1 {[%clk 0:00:41.1]} 28... exd4 {[%clk 0:01:53.1]} 29. cxd4
{[%clk 0:00:40.5]} 29... Bc4 {[%clk 0:01:52.8]} 30. Nxa4 {[%clk 0:00:36.6]}
30... Qf6 {[%clk 0:01:39.3]} 31. Rb2 {[%clk 0:00:27.2]} 31... Qg5 {[%clk
0:01:27.8]} 32. Qc5 {[%clk 0:00:17.4]} 32... Rf5 {[%clk 0:01:16.8]} 33. Qc7
{[%clk 0:00:13.4]} 33... Rbf8 {[%clk 0:01:15.3]} 34. Nb6 {[%clk 0:00:13.2]}
34... Rxf2 {[%clk 0:01:06.4]} 35. Rxf2 {[%clk 0:00:12.2]} 35... Qxe3 {[%clk
0:01:06.5]} 36. Rf1 {[%clk 0:00:10.4]} 36... Bxf1 {[%clk 0:01:03.5]} 37. Bd5+
{[%clk 0:00:08.7]} 37... Kh8 {[%clk 0:01:03.2]} 38. Qc2 {[%clk 0:00:08.2]} 38...
Bxd4 {[%clk 0:01:01.2]} 39. Kxf1 {[%clk 0:00:05.5]} 39... Rxf2+ {[%clk
0:01:00.5]} 0-1

[Event "*** Titled Tuesday Blitz"]
[Site "Chess.com"]
[Date "2021.04.27"]
[Round "7"]
[White "lacafi"]
[Black "niki_2003"]
[Result "1-0"]
[WhiteElo "2165"]
[BlackElo "2023"]
[TimeControl "180+1"]
[EndTime "11:16:12 PDT"]
[Termination "lacafi won by checkmate"]

1. d4 {[%clk 0:03:00.9]} 1... Nf6 {[%clk 0:02:59.2]} 2. Nf3 {[%clk 0:03:00.6]}
2... e6 {[%clk 0:02:59.9]} 3. e3 {[%clk 0:03:00.6]} 3... d5 {[%clk 0:03:00.8]}
4. Bd3 {[%clk 0:03:00.2]} 4... Bd6 {[%clk 0:03:01.7]} 5. Nbd2 {[%clk 0:03:00]}
5... O-O {[%clk 0:03:02.6]} 6. Qe2 {[%clk 0:03:00.7]} 6... Nbd7 {[%clk
0:03:03.4]} 7. e4 {[%clk 0:03:00.6]} 7... c5 {[%clk 0:03:04.3]} 8. e5 {[%clk
0:02:54.7]} 8... c4 {[%clk 0:03:04.5]} 9. Bxc4 {[%clk 0:02:36.2]} 9... dxc4
{[%clk 0:03:04]} 10. exd6 {[%clk 0:02:36.4]} 10... Nb6 {[%clk 0:03:03.7]} 11.
Nxc4 {[%clk 0:02:34.6]} 11... Nxc4 {[%clk 0:03:03.9]} 12. Qxc4 {[%clk
0:02:34.9]} 12... Qxd6 {[%clk 0:03:04.5]} 13. O-O {[%clk 0:02:35]} 13... Bd7
{[%clk 0:03:04.3]} 14. Bg5 {[%clk 0:02:32]} 14... Ne4 {[%clk 0:02:59]} 15. Qd3
{[%clk 0:02:25.8]} 15... f5 {[%clk 0:02:52.1]} 16. Be3 {[%clk 0:02:10.1]} 16...
a6 {[%clk 0:02:44.6]} 17. Ne5 {[%clk 0:02:09.1]} 17... Bb5 {[%clk 0:02:41.6]}
18. c4 {[%clk 0:02:08.8]} 18... Bc6 {[%clk 0:02:39]} 19. f3 {[%clk 0:01:50.4]}
19... Nf6 {[%clk 0:02:30.1]} 20. Rfd1 {[%clk 0:01:49.6]} 20... Nd7 {[%clk
0:02:28.8]} 21. Nxc6 {[%clk 0:01:44.6]} 21... bxc6 {[%clk 0:02:26.1]} 22. d5
{[%clk 0:01:23.7]} 22... cxd5 {[%clk 0:02:25]} 23. cxd5 {[%clk 0:01:24.1]} 23...
Rad8 {[%clk 0:02:18.3]} 24. Rac1 {[%clk 0:00:40]} 24... Ne5 {[%clk 0:02:13.7]}
25. Qb3 {[%clk 0:00:33.9]} 25... exd5 {[%clk 0:02:11.6]} 26. Bc5 {[%clk
0:00:32.5]} 26... Qe6 {[%clk 0:02:10.3]} 27. Bxf8 {[%clk 0:00:31.8]} 27... Kxf8
{[%clk 0:02:10.1]} 28. Rc5 {[%clk 0:00:24]} 28... Nc4 {[%clk 0:02:07.7]} 29. Qd3
{[%clk 0:00:16.7]} 29... Qe3+ {[%clk 0:02:01.9]} 30. Qxe3 {[%clk 0:00:13.1]}
30... Nxe3 {[%clk 0:02:01.2]} 31. Rd3 {[%clk 0:00:13.2]} 31... d4 {[%clk
0:02:00]} 32. Kf2 {[%clk 0:00:13.1]} 32... f4 {[%clk 0:01:58.8]} 33. Ra5 {[%clk
0:00:11.9]} 33... Nc4 {[%clk 0:01:56.9]} 34. Rxa6 {[%clk 0:00:10.4]} 34... Nxb2
{[%clk 0:01:56.8]} 35. Rb3 {[%clk 0:00:09.5]} 35... Nd1+ {[%clk 0:01:55]} 36.
Ke1 {[%clk 0:00:09]} 36... Ne3 {[%clk 0:01:53.9]} 37. Kf2 {[%clk 0:00:09.1]}
37... d3 {[%clk 0:01:47.7]} 38. Rb7 {[%clk 0:00:08.1]} 38... d2 {[%clk
0:01:45.8]} 39. Raa7 {[%clk 0:00:08.6]} 39... Nd1+ {[%clk 0:01:32.2]} 40. Ke2
{[%clk 0:00:08]} 40... Nc3+ {[%clk 0:01:31.7]} 41. Kf2 {[%clk 0:00:08.1]} 41...
Nd1+ {[%clk 0:01:07.2]} 42. Kg1 {[%clk 0:00:08]} 42... Rd6 {[%clk 0:01:03]} 43.
Rb8+ {[%clk 0:00:07.6]} 43... Rd8 {[%clk 0:01:01.1]} 44. Rxd8# {[%clk
0:00:08.1]} 1-0

[Event "*** Titled Tuesday Blitz"]
[Site "Chess.com"]
[Date "2021.04.27"]
[Round "7"]
[White "Sjakkerntobi"]
[Black "shaheus"]
[Result "1-0"]
[WhiteElo "2398"]
[BlackElo "2176"]
[TimeControl "180+1"]
[EndTime "11:16:14 PDT"]
[Termination "Sjakkerntobi won on time"]

1. e4 {[%clk 0:03:00.9]} 1... c5 {[%clk 0:02:59.5]} 2. Nf3 {[%clk 0:03:00]} 2...
Nc6 {[%clk 0:02:59.9]} 3. d4 {[%clk 0:03:00.6]} 3... cxd4 {[%clk 0:03:00.1]} 4.
Nxd4 {[%clk 0:03:01.5]} 4... Nf6 {[%clk 0:03:00.7]} 5. Nc3 {[%clk 0:03:01.9]}
5... d6 {[%clk 0:03:01.2]} 6. Bg5 {[%clk 0:03:01]} 6... e6 {[%clk 0:03:01.2]} 7.
Qd2 {[%clk 0:02:58.7]} 7... a6 {[%clk 0:03:01.4]} 8. Nxc6 {[%clk 0:02:55.2]}
8... bxc6 {[%clk 0:02:59.3]} 9. f4 {[%clk 0:02:55.3]} 9... h6 {[%clk 0:02:44.9]}
10. Bh4 {[%clk 0:02:53.5]} 10... Nxe4 {[%clk 0:02:39.8]} 11. Nxe4 {[%clk
0:02:52]} 11... Qxh4+ {[%clk 0:02:39.2]} 12. g3 {[%clk 0:02:52.5]} 12... Qe7
{[%clk 0:02:35.7]} 13. O-O-O {[%clk 0:02:51]} 13... d5 {[%clk 0:02:36]} 14. Nc3
{[%clk 0:02:50.4]} 14... Rb8 {[%clk 0:02:28.2]} 15. a3 {[%clk 0:02:44.6]} 15...
Qb7 {[%clk 0:02:15.7]} 16. Na4 {[%clk 0:02:38.3]} 16... Be7 {[%clk 0:01:44.4]}
17. c3 {[%clk 0:02:21.6]} 17... O-O {[%clk 0:01:40.7]} 18. Bd3 {[%clk
0:02:20.9]} 18... c5 {[%clk 0:01:29.1]} 19. Bc2 {[%clk 0:02:11.3]} 19... Bd7
{[%clk 0:01:23.8]} 20. h4 {[%clk 0:02:05]} 20... Bb5 {[%clk 0:01:13.6]} 21. g4
{[%clk 0:02:00.7]} 21... Qc6 {[%clk 0:01:10.7]} 22. g5 {[%clk 0:01:49]} 22...
Bxa4 {[%clk 0:01:06]} 23. gxh6 {[%clk 0:01:48.8]} 23... Bxc2 {[%clk 0:00:39.4]}
24. Qxc2 {[%clk 0:01:47.8]} 24... g6 {[%clk 0:00:32.7]} 25. h7+ {[%clk
0:01:47.6]} 25... Kh8 {[%clk 0:00:29]} 26. h5 {[%clk 0:01:48.5]} 26... g5 {[%clk
0:00:18.4]} 27. Rdg1 {[%clk 0:01:39.5]} 27... Bd6 {[%clk 0:00:14.9]} 28. fxg5
{[%clk 0:01:35.8]} 28... Bf4+ {[%clk 0:00:14.1]} 29. Kb1 {[%clk 0:01:34.1]}
29... Rxb2+ {[%clk 0:00:11.7]} 30. Kxb2 {[%clk 0:01:32.4]} 30... Rb8+ {[%clk
0:00:11.7]} 31. Ka2 {[%clk 0:01:32.1]} 31... Qb5 {[%clk 0:00:10.8]} 32. g6
{[%clk 0:01:22.6]} 32... Qc4+ {[%clk 0:00:10.3]} 33. Ka1 {[%clk 0:01:22.1]}
33... Be5 {[%clk 0:00:10.1]} 34. Rh3 {[%clk 0:01:02.1]} 34... Rb3 {[%clk
0:00:09]} 35. gxf7 {[%clk 0:00:52.4]} 35... Rxa3+ {[%clk 0:00:08.6]} 36. Kb1
{[%clk 0:00:52.2]} 36... Rb3+ {[%clk 0:00:07.2]} 37. Kc1 {[%clk 0:00:50.5]}
37... Bf4+ {[%clk 0:00:07.4]} 38. Kd1 {[%clk 0:00:49.2]} 1-0

[Event "*** Titled Tuesday Blitz"]
[Site "Chess.com"]
[Date "2021.04.27"]
[Round "7"]
[White "guillembaches"]
[Black "ChadBiryani"]
[Result "1-0"]
[WhiteElo "2509"]
[BlackElo "2316"]
[TimeControl "180+1"]
[EndTime "11:16:18 PDT"]
[Termination "guillembaches won by checkmate"]

1. e4 {[%clk 0:03:00.9]} 1... d5 {[%clk 0:02:56.6]} 2. exd5 {[%clk 0:03:00.6]}
2... Qxd5 {[%clk 0:02:57.5]} 3. Nc3 {[%clk 0:03:00.9]} 3... Qd6 {[%clk
0:02:56.8]} 4. d4 {[%clk 0:03:00.2]} 4... Nf6 {[%clk 0:02:57.4]} 5. Nf3 {[%clk
0:03:00.2]} 5... c6 {[%clk 0:02:58]} 6. h3 {[%clk 0:02:59.9]} 6... g6 {[%clk
0:02:55.7]} 7. Bd3 {[%clk 0:02:59.2]} 7... Bg7 {[%clk 0:02:56.1]} 8. O-O {[%clk
0:02:59.1]} 8... O-O {[%clk 0:02:56.3]} 9. Re1 {[%clk 0:02:58.8]} 9... Nbd7
{[%clk 0:02:55.6]} 10. Bg5 {[%clk 0:02:58.2]} 10... Nb6 {[%clk 0:02:53.4]} 11.
Qe2 {[%clk 0:02:53.7]} 11... Re8 {[%clk 0:02:47.2]} 12. Rad1 {[%clk 0:02:46.4]}
12... Nbd5 {[%clk 0:02:43.5]} 13. Nxd5 {[%clk 0:02:43.2]} 13... Nxd5 {[%clk
0:02:34.7]} 14. Ne5 {[%clk 0:02:32.6]} 14... f6 {[%clk 0:02:22.2]} 15. Nc4
{[%clk 0:02:16.9]} 15... Qc7 {[%clk 0:02:09.8]} 16. Bd2 {[%clk 0:02:11.7]} 16...
Nf4 {[%clk 0:02:09]} 17. Bxf4 {[%clk 0:02:06.6]} 17... Qxf4 {[%clk 0:02:09.9]}
18. c3 {[%clk 0:02:01.9]} 18... Qc7 {[%clk 0:02:01.6]} 19. a4 {[%clk 0:01:59.6]}
19... b5 {[%clk 0:01:51.8]} 20. axb5 {[%clk 0:01:54.5]} 20... cxb5 {[%clk
0:01:52.7]} 21. Ne3 {[%clk 0:01:53.6]} 21... a6 {[%clk 0:01:31]} 22. Nd5 {[%clk
0:01:50.7]} 22... Qd6 {[%clk 0:01:31.3]} 23. Nxe7+ {[%clk 0:01:46.8]} 23... Kf7
{[%clk 0:01:31.3]} 24. Nxc8 {[%clk 0:01:34.5]} 24... Raxc8 {[%clk 0:01:22]} 25.
Qf3 {[%clk 0:01:31.9]} 25... Qd7 {[%clk 0:00:51.6]} 26. Bc2 {[%clk 0:01:20.3]}
26... Kg8 {[%clk 0:00:50.3]} 27. Bb3+ {[%clk 0:01:14.7]} 27... Kh8 {[%clk
0:00:50.8]} 28. d5 {[%clk 0:01:09.8]} 28... f5 {[%clk 0:00:48.1]} 29. h4 {[%clk
0:01:05.2]} 29... a5 {[%clk 0:00:43]} 30. h5 {[%clk 0:01:04.3]} 30... Bf6 {[%clk
0:00:41.7]} 31. Re6 {[%clk 0:00:57.5]} 31... Kg7 {[%clk 0:00:34.5]} 32. h6+
{[%clk 0:00:54.6]} 32... Kf7 {[%clk 0:00:33.9]} 33. Rde1 {[%clk 0:00:49.2]}
33... Bh8 {[%clk 0:00:26.8]} 34. d6 {[%clk 0:00:46.5]} 34... Kf8 {[%clk
0:00:26.2]} 35. Qd5 {[%clk 0:00:44.1]} 35... Rxe6 {[%clk 0:00:22.9]} 36. Rxe6
{[%clk 0:00:44]} 36... Qf7 {[%clk 0:00:04]} 37. Re8+ {[%clk 0:00:38.4]} 37...
Kxe8 {[%clk 0:00:03.6]} 38. Qxf7+ {[%clk 0:00:38.1]} 38... Kd8 {[%clk
0:00:04.5]} 39. Qe7# {[%clk 0:00:38.5]} 1-0

[Event "*** Titled Tuesday Blitz"]
[Site "Chess.com"]
[Date "2021.04.27"]
[Round "7"]
[White "Kislov_Oleg"]
[Black "andrewtnb"]
[Result "1-0"]
[WhiteElo "2493"]
[BlackElo "2256"]
[TimeControl "180+1"]
[EndTime "11:16:19 PDT"]
[Termination "Kislov_Oleg won on time"]

1. e4 {[%clk 0:03:00.9]} 1... c6 {[%clk 0:02:59.5]} 2. d4 {[%clk 0:03:00.5]}
2... d5 {[%clk 0:02:59.8]} 3. Nc3 {[%clk 0:03:00.3]} 3... dxe4 {[%clk
0:02:59.8]} 4. Nxe4 {[%clk 0:03:00.3]} 4... Nf6 {[%clk 0:02:56.9]} 5. Nxf6+
{[%clk 0:02:59.5]} 5... gxf6 {[%clk 0:02:56.8]} 6. Bc4 {[%clk 0:02:46.7]} 6...
Bf5 {[%clk 0:02:51.8]} 7. Ne2 {[%clk 0:02:46]} 7... e6 {[%clk 0:02:48.8]} 8. Ng3
{[%clk 0:02:43]} 8... Bg6 {[%clk 0:02:47.3]} 9. h4 {[%clk 0:02:34.5]} 9... h6
{[%clk 0:02:05.6]} 10. h5 {[%clk 0:02:29.9]} 10... Bh7 {[%clk 0:02:04.2]} 11. c3
{[%clk 0:02:27]} 11... Nd7 {[%clk 0:01:58.2]} 12. Bf4 {[%clk 0:02:25.3]} 12...
Nb6 {[%clk 0:01:54.5]} 13. Bb3 {[%clk 0:02:16.8]} 13... Nd5 {[%clk 0:01:52.5]}
14. Bd2 {[%clk 0:02:09.3]} 14... a5 {[%clk 0:01:24.8]} 15. a4 {[%clk 0:02:05.8]}
15... Rg8 {[%clk 0:01:11.1]} 16. O-O {[%clk 0:01:55.6]} 16... f5 {[%clk
0:00:58.8]} 17. Qf3 {[%clk 0:01:44.6]} 17... Qh4 {[%clk 0:00:52.2]} 18. c4
{[%clk 0:01:29]} 18... Nb4 {[%clk 0:00:40.4]} 19. d5 {[%clk 0:01:26.8]} 19...
Bc5 {[%clk 0:00:22.6]} 20. Be3 {[%clk 0:00:48.9]} 20... Bxe3 {[%clk 0:00:19.5]}
21. Qxe3 {[%clk 0:00:33.9]} 21... f4 {[%clk 0:00:19.5]} 22. Qd4 {[%clk
0:00:29.3]} 22... c5 {[%clk 0:00:19]} 23. Qxc5 {[%clk 0:00:21]} 23... fxg3
{[%clk 0:00:18.9]} 24. Qb5+ {[%clk 0:00:21.2]} 24... Ke7 {[%clk 0:00:16.4]} 25.
Qxb7+ {[%clk 0:00:20.1]} 25... Kf6 {[%clk 0:00:16.5]} 26. fxg3+ {[%clk
0:00:20.3]} 1-0

[Event "*** Titled Tuesday Blitz"]
[Site "Chess.com"]
[Date "2021.04.27"]
[Round "7"]
[White "Gusarov91"]
[Black "debashisdebs"]
[Result "1-0"]
[WhiteElo "2632"]
[BlackElo "2878"]
[TimeControl "180+1"]
[EndTime "11:16:22 PDT"]
[Termination "Gusarov91 won by resignation"]

1. d4 {[%clk 0:02:54.5]} 1... Nf6 {[%clk 0:02:59.6]} 2. Nf3 {[%clk 0:02:54.6]}
2... g6 {[%clk 0:02:58.7]} 3. c4 {[%clk 0:02:55.1]} 3... Bg7 {[%clk 0:02:58.9]}
4. g3 {[%clk 0:02:55.4]} 4... O-O {[%clk 0:02:58.5]} 5. Bg2 {[%clk 0:02:56]}
5... c6 {[%clk 0:02:58.8]} 6. O-O {[%clk 0:02:55.7]} 6... d5 {[%clk 0:02:59.7]}
7. Qb3 {[%clk 0:02:55.7]} 7... dxc4 {[%clk 0:02:59.2]} 8. Qxc4 {[%clk
0:02:55.6]} 8... Bf5 {[%clk 0:02:59.7]} 9. Nc3 {[%clk 0:02:55.3]} 9... Nbd7
{[%clk 0:02:58]} 10. Bf4 {[%clk 0:02:51.5]} 10... Rc8 {[%clk 0:02:43]} 11. a4
{[%clk 0:02:47.3]} 11... Ne4 {[%clk 0:02:36.6]} 12. Nxe4 {[%clk 0:02:26]} 12...
Bxe4 {[%clk 0:02:35.7]} 13. Rfd1 {[%clk 0:02:23.3]} 13... Qa5 {[%clk 0:02:10.3]}
14. b4 {[%clk 0:02:15.3]} 14... Qd5 {[%clk 0:02:08.4]} 15. Rac1 {[%clk
0:02:09.1]} 15... Qxc4 {[%clk 0:02:06.2]} 16. Rxc4 {[%clk 0:02:08.9]} 16... Nb6
{[%clk 0:02:07.1]} 17. Rc3 {[%clk 0:02:01]} 17... Nxa4 {[%clk 0:02:02.9]} 18.
Ra3 {[%clk 0:02:00.2]} 18... b5 {[%clk 0:01:57.4]} 19. Re3 {[%clk 0:01:58.8]}
19... f5 {[%clk 0:01:54.3]} 20. Ng5 {[%clk 0:01:54.7]} 20... Bxg2 {[%clk
0:01:49.8]} 21. Kxg2 {[%clk 0:01:54.4]} 21... Rfe8 {[%clk 0:01:47.4]} 22. Ne6
{[%clk 0:01:38.5]} 22... Nb6 {[%clk 0:01:39.7]} 23. Ra1 {[%clk 0:01:34.5]} 23...
Nd5 {[%clk 0:01:30.6]} 24. Rb3 {[%clk 0:01:33.7]} 24... Ra8 {[%clk 0:01:27.4]}
25. Ra6 {[%clk 0:01:26.8]} 25... Rec8 {[%clk 0:01:25.7]} 26. e3 {[%clk
0:01:19.5]} 26... h6 {[%clk 0:01:05.5]} 27. Rba3 {[%clk 0:01:14]} 27... g5
{[%clk 0:00:59.8]} 28. Be5 {[%clk 0:01:11.7]} 28... Bxe5 {[%clk 0:00:56.8]} 29.
dxe5 {[%clk 0:01:12]} 29... Kf7 {[%clk 0:00:54.4]} 30. Nd4 {[%clk 0:01:00.3]}
30... Nxb4 {[%clk 0:00:51.4]} 31. Rxa7 {[%clk 0:01:00]} 31... Rxa7 {[%clk
0:00:51.2]} 32. Rxa7 {[%clk 0:01:00.2]} 32... Nd3 {[%clk 0:00:34.1]} 33. Nxf5
{[%clk 0:00:51.2]} 33... Ke6 {[%clk 0:00:34.1]} 34. Nxe7 {[%clk 0:00:49.2]}
34... Re8 {[%clk 0:00:22.7]} 35. Nxc6 {[%clk 0:00:49.3]} 35... b4 {[%clk
0:00:23.2]} 36. Rb7 {[%clk 0:00:44.9]} 36... Rf8 {[%clk 0:00:17.4]} 37. f4
{[%clk 0:00:44.3]} 37... gxf4 {[%clk 0:00:16.7]} 38. exf4 {[%clk 0:00:44.3]}
38... Nxf4+ {[%clk 0:00:16.9]} 39. gxf4 {[%clk 0:00:44.3]} 39... Rxf4 {[%clk
0:00:17.8]} 40. Rxb4 {[%clk 0:00:38.3]} 1-0